bitfinex/quotes_BTCUSD_20220207
["timestamp","ask_amount","ask_price","bid_price","bid_amount"]
[1644230092807,0.07118529,42634.0,42627.0,0.06336306]
[1644230093006,0.07118529,42634.0,42628.0,0.058687]
[1644230093409,0.22506166,42635.0,42628.0,0.058687]
[1644230094008,0.001,42637.0,42628.0,0.058687]
[1644230094444,0.07659081,42637.0,42628.0,0.058687]
[1644230094644,0.123081,42636.0,42628.0,0.058687]
[1644230095045,0.001,42637.0,42628.0,0.058687]
[1644230095244,0.001,42637.0,42629.0,0.3]
[1644230095644,0.001,42637.0,42630.0,0.117355]
[1644230095844,0.07080956,42636.0,42631.0,0.05]
[1644230096048,0.123081,42635.0,42631.0,0.05]
[1644230096448,0.123081,42635.0,42633.0,0.058671]
[1644230096650,0.001,42637.0,42635.0,0.45]
[1644230096848,0.001,42637.0,42636.0,0.05]
[1644230097053,0.002,42646.0,42637.0,0.75]
[1644230097249,0.002,42646.0,42643.0,0.2773393]
[1644230097450,0.002,42646.0,42637.0,0.8]
[1644230097451,0.002,42646.0,42644.0,0.0773685]
[1644230097653,0.00452634,42649.0,42646.0,0.75]
[1644230097854,0.00452634,42649.0,42648.0,0.05]
[1644230098303,0.00452634,42649.0,42647.0,0.05]
[1644230098304,0.00452634,42649.0,42644.0,0.225939]
[1644230099299,0.37199312,42648.0,42644.0,0.225939]
[1644230100301,0.37189312,42648.0,42644.0,0.225939]
[1644230100902,0.36255263,42648.0,42644.0,0.225939]
[1644230101107,0.36255263,42648.0,42635.0,0.11778739]
[1644230101108,0.05,42644.0,42635.0,0.11778739]
[1644230101312,0.05,42644.0,42627.0,0.1155]
[1644230101313,0.0473,42643.0,42627.0,0.1155]
[1644230101504,0.23948541,42640.0,42635.0,0.00067656]
[1644230101784,0.170381,42639.0,42635.0,0.00067656]
[1644230101980,0.66267713,42636.0,42635.0,0.00067656]
[1644230102182,0.83305813,42636.0,42635.0,0.00067656]
[1644230102380,0.93305813,42636.0,42624.0,0.19663525]
[1644230102581,0.93305813,42636.0,42622.0,0.02151468]
[1644230102582,0.38412389,42626.0,42622.0,0.02151468]
[1644230102780,0.170381,42625.0,42620.0,0.234677]
[1644230102980,0.0473,42625.0,42620.0,0.234677]
[1644230103185,0.19004517,42624.0,42622.0,0.058689]
[1644230103385,0.0473,42623.0,42608.0,0.3601]
[1644230103583,0.0473,42623.0,42613.0,0.092413]
[1644230103584,0.123081,42622.0,42613.0,0.092413]
[1644230103884,0.0473,42621.0,42613.0,0.092413]
[1644230104479,0.0473,42621.0,42613.0,0.151115]
[1644230104679,0.0473,42621.0,42616.0,0.17608]
[1644230104881,0.08442613,42618.0,42616.0,0.17608]
[1644230105082,0.0473,42617.0,42616.0,0.17608]
[1644230105280,0.34075045,42617.0,42616.0,0.17608]
[1644230105504,0.34075045,42617.0,42615.0,0.00067639]
[1644230105505,0.46383145,42617.0,42615.0,0.00067639]
[1644230105702,0.44966779,42616.0,42615.0,0.00067639]
[1644230105902,0.85098681,42616.0,42615.0,0.00067639]
[1644230106101,0.85098681,42616.0,42613.0,0.01856188]
[1644230106697,0.85098681,42616.0,42612.0,0.058706]
[1644230106897,0.85088201,42616.0,42612.0,0.058706]
[1644230107502,1.01181912,42616.0,42612.0,0.058706]
[1644230107801,1.60241912,42616.0,42611.0,0.02069814]
[1644230108201,0.16093711,42615.0,42611.0,0.02069814]
[1644230108403,0.170381,42614.0,42612.0,0.058715]
[1644230108602,0.39537793,42613.0,42612.0,0.058715]
[1644230108902,0.44267793,42613.0,42612.0,0.058715]
[1644230109553,0.31959693,42613.0,42610.0,0.058714]
[1644230109751,0.123081,42612.0,42610.0,0.05939009]
[1644230109952,0.123081,42612.0,42610.0,0.00067609]
[1644230109953,0.32170878,42611.0,42610.0,0.00067609]
[1644230110451,0.170381,42611.0,42610.0,0.00067609]
[1644230110852,0.123081,42610.0,42609.0,0.117433]
[1644230111053,0.44934467,42610.0,42609.0,0.117433]
[1644230111253,0.170381,42610.0,42609.0,0.117433]
[1644230111658,0.44826751,42610.0,42609.0,0.117433]
[1644230111955,0.44826751,42610.0,42609.0,0.167433]
[1644230112154,0.44806802,42610.0,42609.0,0.167433]
[1644230112454,0.44806802,42610.0,42607.0,0.10939213]
[1644230112655,0.44806802,42610.0,42607.0,0.05939213]
[1644230112854,0.170381,42610.0,42607.0,0.10939213]
[1644230113100,0.0473,42610.0,42607.0,0.10939213]
[1644230113301,0.0473,42610.0,42607.0,0.108716]
[1644230113502,0.0473,42610.0,42608.0,0.06662732]
[1644230113898,0.0473,42610.0,42609.0,0.22018408]
[1644230114099,0.0473,42610.0,42609.0,0.27018408]
[1644230114702,0.20823711,42615.0,42609.0,0.27018408]
[1644230115103,0.0473,42615.0,42609.0,0.27018408]
[1644230115501,0.0473,42615.0,42609.0,0.05]
[1644230115703,0.123081,42614.0,42609.0,0.05]
[1644230115902,0.0473,42613.0,42610.0,0.0006761]
[1644230116101,0.123081,42612.0,42610.0,0.0006761]
[1644230116301,0.0473,42611.0,42610.0,0.0006761]
[1644230116852,0.2477742,42608.0,42607.0,0.108716]
[1644230117249,0.2477742,42608.0,42607.0,0.05]
[1644230120898,0.53439909,42608.0,42607.0,0.05]
[1644230121098,0.89623788,42608.0,42607.0,0.05]
[1644230121299,1.01931888,42608.0,42607.0,0.05]
[1644230121599,1.18025599,42608.0,42607.0,0.05]
[1644230121799,1.01931888,42608.0,42607.0,0.05]
[1644230122002,0.8936311,42608.0,42607.0,0.05]
[1644230122299,0.7705501,42608.0,42607.0,0.05]
[1644230122499,0.65691299,42608.0,42607.0,0.05]
[1644230129714,0.65691299,42608.0,42607.0,0.045]
[1644230130110,0.2950742,42608.0,42607.0,0.045]
[1644230131511,0.2950742,42608.0,42607.0,0.26357872]
[1644230131752,0.2950742,42608.0,42607.0,0.0405]
[1644230134858,0.2950742,42608.0,42605.0,0.05934184]
[1644230134859,0.2950742,42608.0,42605.0,0.058712]
[1644230135060,0.123081,42607.0,42605.0,0.00062984]
[1644230135255,0.0473,42606.0,42605.0,0.00062984]
[1644230135510,0.25910495,42606.0,42605.0,0.00062984]
[1644230135701,0.25878788,42606.0,42605.0,0.00062984]
[1644230136202,0.25878788,42606.0,42603.0,0.06958327]
[1644230136902,0.25878788,42606.0,42603.0,0.10935176]
[1644230137103,0.25878788,42606.0,42603.0,0.15935176]
[1644230137305,0.25878788,42606.0,42603.0,0.158722]
[1644230140452,0.17006393,42606.0,42603.0,0.158722]
[1644230140652,0.04698293,42606.0,42604.0,0.05]
[1644230140853,0.2477742,42608.0,42604.0,0.05]
[1644230141852,0.44156372,42610.0,42604.0,0.05]
[1644230142052,0.44156372,42610.0,42604.0,0.167421]
[1644230142252,0.44156372,42610.0,42605.0,0.05]
[1644230142853,0.70315912,42610.0,42605.0,0.05]
[1644230143301,0.70315912,42610.0,42605.0,0.1]
[1644230143506,0.70315912,42610.0,42605.0,0.10062974]
[1644230143901,0.70315912,42610.0,42605.0,0.15062974]
[1644230144105,0.70315912,42610.0,42605.0,0.10062974]
[1644230144503,0.70315912,42610.0,42605.0,0.1]
[1644230144705,0.44156372,42610.0,42605.0,0.15062974]
[1644230145504,0.44156372,42610.0,42605.0,0.05062974]
[1644230145705,0.20086108,42609.0,42605.0,0.05]
[1644230145904,0.20086108,42609.0,42605.0,0.05062974]
[1644230146105,0.20086108,42609.0,42605.0,0.00062974]
[1644230146506,0.20086108,42609.0,42605.0,0.05062974]
[1644230146753,0.20086108,42609.0,42605.0,0.1]
[1644230146954,0.20062635,42609.0,42605.0,0.1]
[1644230147154,0.20062635,42609.0,42605.0,0.10062975]
[1644230147354,0.20062635,42609.0,42605.0,0.15062975]
[1644230147958,0.20062635,42609.0,42605.0,0.15]
[1644230148157,0.37504766,42610.0,42608.0,0.05]
[1644230148755,0.07896581,42614.0,42609.0,0.08021875]
[1644230148959,0.123081,42617.0,42613.0,0.05]
[1644230149157,0.21781588,42615.0,42613.0,0.05]
[1644230149555,0.21781588,42615.0,42613.0,0.00062967]
[1644230149957,0.46201956,42614.0,42613.0,0.00062967]
[1644230150617,0.123081,42613.0,42611.0,0.00062968]
[1644230151018,0.123081,42613.0,42612.0,0.22521183]
[1644230151219,0.001,42616.0,42612.0,0.52521183]
[1644230151447,0.001,42616.0,42615.0,0.05]
[1644230152016,0.27061726,42616.0,42615.0,0.05]
[1644230152418,0.39369826,42616.0,42615.0,0.05]
[1644230152818,0.27061726,42616.0,42615.0,0.05]
[1644230153919,0.35606035,42616.0,42615.0,0.05]
[1644230154353,0.27061726,42616.0,42615.0,0.05]
[1644230155857,0.35646579,42616.0,42615.0,0.05]
[1644230159103,0.47954679,42616.0,42615.0,0.05]
[1644230159302,0.47954679,42616.0,42613.0,0.00063661]
[1644230159502,0.35646579,42616.0,42613.0,0.00063661]
[1644230160105,0.35646579,42616.0,42611.0,0.07055425]
[1644230160303,0.35646579,42616.0,42612.0,0.00063662]
[1644230160704,0.35646579,42616.0,42612.0,0.05063662]
[1644230160905,0.123081,42615.0,42612.0,0.00063662]
[1644230161108,0.0473,42614.0,42612.0,0.00063662]
[1644230161306,0.123081,42613.0,42608.0,0.07023345]
[1644230161506,0.0473,42613.0,42608.0,0.07023345]
[1644230161758,0.27258909,42609.0,42608.0,0.07023345]
[1644230162562,0.39567009,42609.0,42608.0,0.07023345]
[1644230162759,0.44297009,42609.0,42608.0,0.07023345]
[1644230163159,0.44297009,42609.0,42604.0,0.06984761]
[1644230163360,0.08622023,42608.0,42604.0,0.06984761]
[1644230163668,0.13352023,42608.0,42604.0,0.06984761]
[1644230164059,0.13352023,42608.0,42607.0,0.05]
[1644230164259,0.25660123,42608.0,42607.0,0.05]
[1644230164660,0.25660123,42608.0,42604.0,0.06984761]
[1644230164867,0.13352023,42608.0,42607.0,0.05]
[1644230165159,0.25660123,42608.0,42607.0,0.05]
[1644230166407,0.22660123,42608.0,42607.0,0.05]
[1644230167804,0.49564623,42608.0,42607.0,0.05]
[1644230169659,0.49564623,42608.0,42599.0,0.05]
[1644230169660,0.75,42607.0,42599.0,0.05]
[1644230169862,0.75,42607.0,42573.0,0.15648821]
[1644230169863,0.0973,42606.0,42597.0,0.00024559]
[1644230170061,0.0973,42606.0,42605.0,0.00062578]
[1644230170064,0.0473,42606.0,42605.0,0.00062578]
[1644230170264,0.220381,42606.0,42605.0,0.00062578]
[1644230170662,0.47360453,42606.0,42605.0,0.00062578]
[1644230170869,0.47360453,42606.0,42593.0,0.00024559]
[1644230170870,1.51420453,42606.0,42593.0,0.00024559]
[1644230171062,1.51420453,42606.0,42596.0,0.01847517]
[1644230171063,0.708083,42603.0,42596.0,0.01847517]
[1644230171262,0.170381,42602.0,42596.0,0.01847517]
[1644230171463,0.058741,42601.0,42596.0,0.01847517]
[1644230171664,0.170381,42600.0,42596.0,0.01847517]
[1644230171862,0.36043799,42599.0,42596.0,0.01847517]
[1644230172063,0.45104843,42598.0,42596.0,0.01847517]
[1644230172262,0.40171421,42597.0,42596.0,0.01847517]
[1644230172464,0.170381,42597.0,42596.0,0.01847517]
[1644230173113,0.5906,42603.0,42594.0,0.05]
[1644230173114,0.0473,42603.0,42595.0,0.29912484]
[1644230173311,0.17971744,42605.0,42602.0,0.05]
[1644230173508,0.01876579,42605.0,42602.0,0.05]
[1644230173709,0.19960755,42604.0,42601.0,0.05]
[1644230173908,0.3116619,42603.0,42602.0,0.05]
[1644230174108,0.4347429,42603.0,42601.0,0.05]
[1644230174310,0.123081,42602.0,42601.0,0.05]
[1644230174716,0.170381,42602.0,42601.0,0.05]
[1644230175114,0.170381,42602.0,42601.0,0.1]
[1644230176761,0.170381,42602.0,42601.0,0.05]
[1644230177162,0.33133265,42602.0,42601.0,0.05]
[1644230178463,0.170381,42602.0,42600.0,0.00024559]
[1644230178763,0.170381,42602.0,42599.0,0.00067166]
[1644230179363,0.170381,42602.0,42598.0,0.00024559]
[1644230179567,0.170381,42602.0,42598.0,0.00045433]
[1644230180515,0.170381,42602.0,42597.0,0.00024559]
[1644230180711,0.170381,42602.0,42598.0,0.00067128]
[1644230181711,0.170381,42602.0,42597.0,0.00024559]
[1644230181910,0.170381,42602.0,42598.0,0.00067128]
[1644230182512,0.170381,42602.0,42599.0,0.05]
[1644230182912,0.170381,42602.0,42599.0,0.05024559]
[1644230183112,0.170381,42602.0,42599.0,0.05]
[1644230183613,0.170381,42602.0,42599.0,0.05024559]
[1644230183813,0.170381,42602.0,42599.0,0.00024559]
[1644230184013,0.170381,42602.0,42598.0,0.00067128]
[1644230184258,0.170381,42602.0,42596.0,0.00024559]
[1644230184456,0.170381,42602.0,42598.0,0.00067128]
[1644230185459,0.170381,42602.0,42596.0,0.00024559]
[1644230185663,0.170381,42602.0,42598.0,0.00063101]
[1644230185863,0.2246108,42601.0,42598.0,0.00063101]
[1644230186063,0.20651597,42600.0,42598.0,0.00063101]
[1644230186663,0.25381597,42600.0,42596.0,0.00024559]
[1644230186964,0.25381597,42600.0,42597.0,0.00063072]
[1644230187766,0.25381597,42600.0,42596.0,0.00024559]
[1644230188011,0.13073497,42600.0,42596.0,0.00063073]
[1644230188206,0.13073497,42600.0,42599.0,0.05]
[1644230188405,0.25381597,42600.0,42599.0,0.05]
[1644230189606,0.123081,42600.0,42599.0,0.05]
[1644230190409,0.0473,42605.0,42599.0,0.05]
[1644230190606,0.0473,42605.0,42604.0,0.05]
[1644230190807,0.170381,42605.0,42604.0,0.05]
[1644230192462,0.170381,42605.0,42602.0,0.0006448]
[1644230192660,0.170381,42605.0,42599.0,0.00024559]
[1644230192860,0.170381,42605.0,42602.0,0.0006448]
[1644230193062,0.02141182,42608.0,42604.0,0.04990486]
[1644230193263,0.02141182,42608.0,42602.0,0.0006448]
[1644230193264,0.14412862,42613.0,42607.0,0.04990486]
[1644230193862,0.14412862,42613.0,42608.0,0.23551994]
[1644230194061,0.20489211,42611.0,42608.0,0.23551994]
[1644230194262,0.123081,42610.0,42608.0,0.23551994]
[1644230194462,0.123081,42610.0,42609.0,0.2825116]
[1644230194663,0.42764951,42613.0,42608.0,0.23551994]
[1644230194863,0.123081,42612.0,42608.0,0.23551994]
[1644230195066,0.123081,42612.0,42611.0,0.04990486]
[1644230195266,0.07039949,42614.0,42611.0,0.3299713]
[1644230195521,0.001,42616.0,42611.0,0.04990486]
[1644230195711,0.001,42616.0,42615.0,0.04990486]
[1644230196910,0.124081,42616.0,42615.0,0.04990486]
[1644230201762,0.001,42616.0,42613.0,0.00063154]
[1644230201962,0.001,42616.0,42615.0,0.04990486]
[1644230202162,0.124081,42616.0,42615.0,0.04990486]
[1644230203023,0.001,42616.0,42615.0,0.04990486]
[1644230206017,0.001,42616.0,42615.0,0.32867922]
[1644230206217,0.001,42616.0,42615.0,0.37867922]
[1644230206417,0.001,42616.0,42615.0,0.42668186]
[1644230206619,0.001,42616.0,42615.0,0.7089696]
[1644230207865,0.001,42618.0,42616.0,0.326777]
[1644230208066,0.001,42618.0,42617.0,0.3028619]
[1644230209466,0.001,42618.0,42617.0,0.6296389]
[1644230210519,0.001,42618.0,42617.0,0.3028619]
[1644230210914,0.001,42618.0,42617.0,0.6296389]
[1644230211315,0.001,42618.0,42617.0,0.3028619]
[1644230211825,0.001,42618.0,42609.0,0.41392465]
[1644230212027,0.001,42618.0,42615.0,0.00063435]
[1644230212028,0.32447735,42617.0,42615.0,0.00063435]
[1644230212214,0.123081,42616.0,42615.0,0.00063435]
[1644230212415,0.170381,42616.0,42615.0,0.00063435]
[1644230212815,0.170381,42616.0,42615.0,0.07070297]
[1644230213018,0.170381,42616.0,42615.0,0.07006862]
[1644230213419,0.170381,42616.0,42613.0,0.00061147]
[1644230214262,0.170381,42616.0,42607.0,0.05]
[1644230214263,0.44226896,42616.0,42611.0,0.04990486]
[1644230214463,0.21849623,42612.0,42608.0,0.04990486]
[1644230215065,0.29583665,42609.0,42607.0,0.09990486]
[1644230215265,0.29583665,42609.0,42607.0,0.05]
[1644230215467,0.30047741,42611.0,42607.0,0.09990486]
[1644230215864,0.30047741,42611.0,42607.0,0.05]
[1644230216362,0.30047741,42611.0,42607.0,0.09990486]
[1644230216763,0.21849623,42612.0,42607.0,0.10049412]
[1644230217764,0.21849623,42612.0,42611.0,0.04990486]
[1644230218017,0.34157723,42612.0,42611.0,0.04990486]
[1644230218412,0.123081,42612.0,42611.0,0.04990486]
[1644230218813,0.123081,42612.0,42607.0,0.05058926]
[1644230219011,0.123081,42612.0,42611.0,0.08241018]
[1644230220011,0.123081,42612.0,42611.0,0.08230518]
[1644230220211,0.123081,42612.0,42607.0,0.09990486]
[1644230220412,0.45782022,42617.0,42609.0,0.00059064]
[1644230220612,0.123081,42616.0,42609.0,0.00059064]
[1644230221415,0.123081,42616.0,42610.0,0.12797654]
[1644230221614,0.34212256,42615.0,42610.0,0.12856717]
[1644230221878,0.123081,42614.0,42610.0,0.12856717]
[1644230222461,0.63603388,42614.0,42610.0,0.00059063]
[1644230222664,0.79695476,42614.0,42607.0,0.09990486]
[1644230222866,0.79695476,42614.0,42610.0,0.00059058]
[1644230223065,0.0473,42613.0,42610.0,0.00059058]
[1644230223267,0.123081,42612.0,42610.0,0.00059058]
[1644230223565,0.60863251,42611.0,42610.0,0.00059058]
[1644230223864,0.56637426,42611.0,42607.0,0.05]
[1644230224069,0.123081,42610.0,42609.0,0.0005905]
[1644230224765,0.39112168,42610.0,42609.0,0.0005905]
[1644230224966,0.123081,42610.0,42607.0,0.05]
[1644230225164,0.27185461,42611.0,42607.0,0.05059052]
[1644230226020,0.19103186,42611.0,42607.0,0.05059052]
[1644230226216,0.19103186,42611.0,42608.0,0.04990486]
[1644230226418,0.0473,42612.0,42608.0,0.04990486]
[1644230226624,0.123081,42613.0,42611.0,0.04990486]
[1644230227020,0.123081,42613.0,42612.0,0.07678365]
[1644230227818,0.24,42614.0,42612.0,0.07678365]
[1644230228619,0.24,42614.0,42612.0,0.12678365]
[1644230229763,0.24,42614.0,42611.0,0.04990486]
[1644230229961,0.24,42614.0,42611.0,0.05049536]
[1644230231063,0.24,42614.0,42611.0,0.04990486]
[1644230231662,0.24,42614.0,42612.0,0.27188561]
[1644230231865,0.24,42614.0,42611.0,0.04990486]
[1644230232464,0.24,42614.0,42612.0,0.27933137]
[1644230232864,0.24,42614.0,42612.0,0.33042547]
[1644230233119,0.24,42614.0,42613.0,0.35894495]
[1644230233318,0.001,42618.0,42614.0,0.75]
[1644230233520,0.001,42618.0,42617.0,0.04990486]
[1644230233718,0.001,42618.0,42617.0,0.3380074]
[1644230234619,0.001,42618.0,42617.0,0.04990486]
[1644230235018,0.001,42618.0,42615.0,0.05]
[1644230235221,0.001,42618.0,42614.0,0.04990486]
[1644230235222,0.124081,42618.0,42614.0,0.04990486]
[1644230235417,0.123081,42617.0,42614.0,0.04990486]
[1644230236520,0.44627418,42617.0,42614.0,0.04990486]
[1644230237170,0.44627418,42617.0,42611.0,0.04990486]
[1644230237568,0.32462925,42613.0,42611.0,0.04990486]
[1644230237766,0.123081,42612.0,42611.0,0.04990486]
[1644230238767,0.058708,42613.0,42611.0,0.04990486]
[1644230239769,0.32319318,42617.0,42611.0,0.04990486]
[1644230239969,0.123081,42616.0,42611.0,0.04990486]
[1644230240908,0.123081,42616.0,42611.0,0.05053775]
[1644230241807,0.123081,42616.0,42611.0,0.04990486]
[1644230242009,0.123081,42616.0,42611.0,0.05053775]
[1644230242612,0.363081,42616.0,42611.0,0.05053775]
[1644230243009,0.363081,42616.0,42611.0,0.04990486]
[1644230243210,0.363081,42616.0,42611.0,0.05053775]
[1644230243409,0.52398062,42616.0,42611.0,0.05053775]
[1644230243608,0.363081,42616.0,42611.0,0.05053775]
[1644230244270,0.363081,42616.0,42611.0,0.04990486]
[1644230244473,0.363081,42616.0,42611.0,0.0505401]
[1644230244474,0.123081,42614.0,42611.0,0.0505401]
[1644230245570,0.123081,42614.0,42611.0,0.04990486]
[1644230246570,0.123081,42614.0,42607.0,0.09990486]
[1644230246772,0.0473,42613.0,42610.0,0.00062151]
[1644230246971,0.46107659,42612.0,42610.0,0.00062151]
[1644230247171,0.47049159,42611.0,42610.0,0.00062151]
[1644230247370,0.170381,42611.0,42610.0,0.00062151]
[1644230247576,0.123081,42611.0,42610.0,0.00062151]
[1644230247771,0.3,42615.0,42609.0,0.04990486]
[1644230248023,0.3,42615.0,42608.0,0.0006457]
[1644230248024,0.123081,42614.0,42608.0,0.0006457]
[1644230248213,0.0473,42613.0,42608.0,0.0006457]
[1644230248413,0.123081,42612.0,42608.0,0.0006457]
[1644230248613,0.55833716,42615.0,42608.0,0.0006457]
[1644230248614,0.42634428,42611.0,42608.0,0.0006457]
[1644230248812,0.170381,42610.0,42608.0,0.0006457]
[1644230249011,0.21264064,42609.0,42607.0,0.05]
[1644230249213,0.21264064,42609.0,42607.0,0.05064571]
[1644230250216,0.0473,42610.0,42607.0,0.05]
[1644230252767,0.170381,42610.0,42609.0,0.04990486]
[1644230252963,0.44238293,42610.0,42607.0,0.05]
[1644230253363,0.60328255,42610.0,42607.0,0.05]
[1644230253565,0.44238293,42610.0,42607.0,0.05]
[1644230253765,0.08734813,42609.0,42607.0,0.05]
[1644230253967,0.40597114,42608.0,42607.0,0.05]
[1644230254164,0.45327114,42608.0,42607.0,0.05]
[1644230254768,0.45327114,42608.0,42601.0,0.00024559]
[1644230254964,0.33019014,42608.0,42600.0,0.02010348]
[1644230255164,0.058724,42607.0,42600.0,0.02010348]
[1644230255369,0.19864442,42601.0,42600.0,0.01985789]
[1644230255616,0.123081,42604.0,42600.0,0.01985789]
[1644230256116,0.123081,42604.0,42599.0,0.00024559]
[1644230256313,0.0473,42606.0,42598.0,0.04990486]
[1644230256514,0.19543913,42601.0,42598.0,0.04990486]
[1644230256916,0.08245017,42604.0,42598.0,0.04990486]
[1644230257115,0.19213575,42605.0,42598.0,0.04990486]
[1644230257320,0.40168281,42604.0,42595.0,0.00024559]
[1644230257520,0.40168281,42604.0,42594.0,0.00024559]
[1644230257721,0.40168281,42604.0,42599.0,0.00063546]
[1644230258119,0.07475478,42602.0,42599.0,0.00063546]
[1644230258318,0.170381,42601.0,42599.0,0.00063546]
[1644230258719,0.170381,42601.0,42595.0,0.00024559]
[1644230258920,0.0473,42601.0,42598.0,0.00065957]
[1644230259964,0.0473,42601.0,42597.0,0.00065958]
[1644230260965,0.0473,42601.0,42595.0,0.00024559]
[1644230261166,0.27860181,42604.0,42594.0,0.08153193]
[1644230261367,0.30958375,42605.0,42597.0,0.00065958]
[1644230261567,0.123081,42604.0,42597.0,0.00065958]
[1644230262368,0.19213575,42605.0,42598.0,0.00063228]
[1644230262568,0.123081,42604.0,42598.0,0.00063228]
[1644230263220,0.123081,42604.0,42598.0,0.00087787]
[1644230263420,0.123081,42604.0,42598.0,0.00024559]
[1644230263618,0.123081,42604.0,42599.0,0.00063228]
[1644230263821,0.39451156,42604.0,42599.0,0.00063228]
[1644230264620,0.39451156,42604.0,42597.0,0.04990486]
[1644230264818,0.123081,42604.0,42599.0,0.00063227]
[1644230265823,0.123081,42604.0,42597.0,0.04990486]
[1644230266024,0.16089962,42610.0,42603.0,0.04990486]
[1644230266320,0.01924299,42607.0,42605.0,0.26669349]
[1644230266769,0.01924299,42607.0,42606.0,0.04990486]
[1644230267568,0.123081,42615.0,42606.0,0.04990486]
[1644230268171,0.08219006,42613.0,42606.0,0.04990486]
[1644230268372,0.39817824,42612.0,42606.0,0.04990486]
[1644230268570,0.39817824,42612.0,42608.0,0.00063542]
[1644230268571,0.18912862,42610.0,42608.0,0.00063542]
[1644230268770,0.123081,42609.0,42608.0,0.00063542]
[1644230269470,0.123081,42609.0,42603.0,0.04990486]
[1644230269670,0.123081,42609.0,42606.0,0.00063497]
[1644230270616,0.284693,42608.0,42606.0,0.00063497]
[1644230270819,0.284693,42608.0,42600.0,0.00025706]
[1644230270820,0.284693,42608.0,42605.0,0.00063498]
[1644230271020,0.123081,42607.0,42605.0,0.00063498]
[1644230271517,0.123081,42607.0,42605.0,0.05053984]
[1644230271916,0.123081,42607.0,42605.0,0.04990486]
[1644230272516,0.123081,42607.0,42606.0,0.04990486]
[1644230272917,0.1214,42612.0,42606.0,0.04990486]
[1644230272918,0.123081,42611.0,42606.0,0.04990486]
[1644230274117,0.123081,42611.0,42604.0,0.00063506]
[1644230274366,0.123081,42611.0,42601.0,0.12242157]
[1644230274566,0.23730556,42612.0,42606.0,0.00063503]
[1644230274766,0.123081,42611.0,42606.0,0.00063503]
[1644230275168,0.118081,42611.0,42606.0,0.00063503]
[1644230275572,0.118081,42611.0,42602.0,0.04990486]
[1644230275770,0.118081,42611.0,42606.0,0.00063503]
[1644230276771,0.358081,42611.0,42602.0,0.04990486]
[1644230276970,0.358081,42611.0,42606.0,0.00063502]
[1644230277574,0.57769662,42611.0,42606.0,0.00063502]
[1644230277772,0.416797,42611.0,42606.0,0.00063502]
[1644230278027,0.416797,42611.0,42599.0,0.00025706]
[1644230278028,0.57769662,42611.0,42599.0,0.00025706]
[1644230278218,0.416797,42611.0,42606.0,0.00063502]
[1644230278418,0.22750706,42610.0,42606.0,0.00063502]
[1644230278617,0.4382356,42609.0,42606.0,0.00063502]
[1644230279018,0.118081,42609.0,42606.0,0.00063502]
[1644230279220,0.06830698,42602.0,42598.0,0.00025706]
[1644230279420,0.06830698,42602.0,42597.0,0.41334977]
[1644230279618,0.06830698,42602.0,42598.0,0.26955362]
[1644230279820,0.06830698,42602.0,42599.0,0.05]
[1644230280219,0.1237,42608.0,42598.0,0.00025706]
[1644230280422,0.1237,42608.0,42600.0,0.04990486]
[1644230280619,0.22750706,42610.0,42600.0,0.04990486]
[1644230280821,0.26540325,42603.0,42600.0,0.04990486]
[1644230281221,0.25420325,42603.0,42600.0,0.04990486]
[1644230281427,0.41195523,42603.0,42599.0,0.00025706]
[1644230281622,0.41195523,42603.0,42599.0,0.00060933]
[1644230281870,0.07927097,42611.0,42600.0,0.04990486]
[1644230282071,0.07927097,42611.0,42603.0,0.04990486]
[1644230282072,0.02055497,42611.0,42603.0,0.04990486]
[1644230282271,0.118081,42610.0,42603.0,0.04990486]
[1644230282471,0.19607784,42610.0,42603.0,0.04990486]
[1644230282670,0.19607784,42610.0,42603.0,0.05016192]
[1644230282870,0.44670689,42610.0,42604.0,0.00060928]
[1644230283872,0.44670689,42610.0,42603.0,0.04990486]
[1644230284075,0.44670689,42610.0,42605.0,0.00063591]
[1644230285076,0.44670689,42610.0,42597.0,0.00025706]
[1644230285276,0.44670689,42610.0,42605.0,0.0006359]
[1644230286319,0.44670689,42610.0,42603.0,0.17227806]
[1644230286519,0.44670689,42610.0,42605.0,0.0006359]
[1644230287321,0.68670689,42610.0,42605.0,0.0006359]
[1644230287521,0.68670689,42610.0,42603.0,0.17227806]
[1644230287723,0.68670689,42610.0,42605.0,0.00063491]
[1644230288823,0.68670689,42610.0,42603.0,0.17227806]
[1644230289024,0.68670689,42610.0,42605.0,0.00063491]
[1644230289865,0.68670689,42610.0,42603.0,0.17227806]
[1644230289866,0.68670689,42610.0,42603.0,0.22218292]
[1644230290065,0.68670689,42610.0,42605.0,0.00063491]
[1644230290665,0.6518404,42610.0,42605.0,0.00063491]
[1644230291066,0.0473,42609.0,42603.0,0.09990486]
[1644230291269,0.0473,42609.0,42605.0,0.00063505]
[1644230292365,0.0473,42609.0,42603.0,0.04990486]
[1644230292564,0.0473,42609.0,42605.0,0.00063506]
[1644230292767,0.52958244,42610.0,42605.0,0.00063506]
[1644230293621,0.52920379,42610.0,42599.0,0.00025706]
[1644230293821,0.52920379,42610.0,42605.0,0.00063505]
[1644230294823,0.52920379,42610.0,42599.0,0.00025706]
[1644230295024,0.52920379,42610.0,42605.0,0.00063503]
[1644230295521,0.83052704,42610.0,42605.0,0.00063503]
[1644230295724,0.69010341,42610.0,42605.0,0.00063503]
[1644230295923,0.69010341,42610.0,42602.0,0.00025706]
[1644230296125,0.25348092,42603.0,42600.0,0.00025706]
[1644230296323,0.25348092,42603.0,42599.0,0.04990486]
[1644230296766,0.25348092,42603.0,42597.0,0.04990486]
[1644230297367,0.1192,42609.0,42598.0,0.27289654]
[1644230297568,0.1192,42609.0,42598.0,0.2731536]
[1644230297768,0.02138895,42607.0,42599.0,0.05]
[1644230297968,0.02138895,42607.0,42600.0,0.11488793]
[1644230298370,0.02138895,42607.0,42600.0,0.11514499]
[1644230298570,0.02138895,42607.0,42601.0,0.00063508]
[1644230298771,0.02138895,42607.0,42601.0,0.00089214]
[1644230299572,0.02138895,42607.0,42601.0,0.00025706]
[1644230299775,0.6994566,42610.0,42602.0,0.00063507]
[1644230300817,0.6994566,42610.0,42601.0,0.00025706]
[1644230301019,0.6994566,42610.0,42604.0,0.00063505]
[1644230301719,0.6962829,42610.0,42604.0,0.00063505]
[1644230301919,0.6962829,42610.0,42597.0,0.00025706]